bitfinex/quotes_SOLUSD_20250831
["timestamp","ask_amount","ask_price","bid_price","bid_amount"]
[1756598767317,0.1,203.7,203.64,39.59559401]
[1756598767520,0.1,203.7,203.69,39.59559401]
[1756598767740,0.1,203.7,203.69,78.35559401]
[1756598768245,0.81,203.7,203.69,52.35559401]
[1756598769145,0.81,203.7,203.69,57.26501518]
[1756598769337,0.1,203.7,203.69,57.26501518]
[1756598769847,0.1,203.7,203.69,57.24501518]
[1756598772023,0.1,203.7,203.69,57.22501518]
[1756598772630,0.81,203.7,203.69,13.59559401]
[1756598772834,0.81,203.7,203.69,52.31559401]
[1756598775145,0.81,203.7,203.69,13.59559401]
[1756598775327,0.81,203.7,203.69,52.27559401]
[1756598776759,0.81,203.7,203.69,13.59559401]
[1756598777046,0.81,203.7,203.69,38.68]
[1756598778349,5.71918016,203.7,203.69,38.68]
[1756598779958,5.71918016,203.7,203.62,9.82015418]
[1756598780170,0.71,203.69,203.63,52.27559401]
[1756598780347,0.71,203.68,203.63,52.27559401]
[1756598780654,0.71,203.67,203.63,52.27559401]
[1756598781840,0.71,203.68,203.63,52.27559401]
[1756598782042,0.71,203.68,203.64,4.91062659]
[1756598782227,0.71,203.68,203.66,13.59559401]
[1756598782429,0.71,203.68,203.67,38.66]
[1756598785237,0.71,203.68,203.65,14.763416]
[1756598785238,26.0,203.67,203.65,14.763416]
[1756598785435,0.71,203.66,203.65,38.62]
[1756598785939,0.71,203.66,203.61,28.36119001]
[1756598786165,26.71,203.65,203.6,0.03]
[1756598786335,26.71,203.65,203.61,38.64]
[1756598786537,0.71,203.64,203.61,38.64]
[1756598786859,26.0,203.65,203.61,38.64]
[1756598786860,0.71,203.63,203.61,38.64]
[1756598787072,0.71,203.62,203.61,38.64]
[1756598789753,5.62110994,203.62,203.6,0.03]
[1756598789957,5.62110994,203.62,203.6,38.67]
[1756598790165,0.71,203.61,203.6,38.67]
[1756598790643,0.71,203.61,203.6,0.03]
[1756598791860,5.62135013,203.61,203.6,0.03]
[1756598796081,0.68,203.64,203.6,0.03]
[1756598796477,0.68,203.63,203.6,0.03]
[1756598796660,0.68,203.66,203.6,0.7]
[1756598796867,5.58964381,203.69,203.61,13.59559401]
[1756598797073,5.58964381,203.69,203.62,0.67]
[1756598797657,26.0,203.66,203.62,0.67]
[1756598797970,26.0,203.66,203.63,0.67]
[1756598798161,4.90968269,203.68,203.64,0.67]
[1756598798357,0.1,203.7,203.61,18.50694408]
[1756598798666,0.1,203.7,203.65,0.67]
[1756598798869,0.1,203.7,203.66,0.67]
[1756598799375,0.1,203.7,203.62,38.72]
[1756598799376,26.0,203.67,203.63,14.764143]
[1756598799688,26.0,203.67,203.63,0.67]
[1756598800060,4.90978049,203.68,203.63,0.67]
[1756598800266,5.58978049,203.68,203.63,0.67]
[1756598801278,26.0,203.65,203.63,0.67]
[1756598801575,26.0,203.65,203.62,13.59559401]
[1756598801782,26.0,203.65,203.62,14.26559401]
[1756598803567,26.0,203.65,203.6,53.535596]
[1756598803568,26.0,203.64,203.61,13.59559401]
[1756598803875,26.0,203.64,203.61,14.26559401]
[1756598804190,26.0,203.64,203.62,0.67]
[1756598804969,26.0,203.64,203.61,13.59559401]
[1756598805287,26.0,203.64,203.61,14.26559401]
[1756598805489,26.0,203.64,203.62,0.67]
[1756598806387,4.90988805,203.68,203.63,0.67]
[1756598806583,26.0,203.67,203.63,0.67]
[1756598806888,26.68,203.67,203.63,0.67]
[1756598807063,0.68,203.67,203.61,14.26559401]
[1756598807468,26.0,203.67,203.61,13.59559401]
[1756598807668,26.0,203.67,203.62,0.67]
[1756598807888,26.0,203.67,203.63,0.67]
[1756598808291,26.68,203.67,203.63,0.67]
[1756598809388,0.1,203.7,203.65,13.59559401]
[1756598809774,0.1,203.7,203.66,0.67]
[1756598810387,0.78,203.7,203.66,0.67]
[1756598811180,0.78,203.7,203.67,0.67]
[1756598811181,0.1,203.7,203.67,0.67]
[1756598811377,0.1,203.7,203.68,0.67]
[1756598811582,26.0,203.69,203.68,0.67]
[1756598811892,26.0,203.69,203.66,0.67]
[1756598812565,0.1,203.7,203.67,0.67]
[1756598813390,26.0,203.68,203.67,0.67]
[1756598814080,0.68,203.68,203.64,66.95973701]
[1756598814402,0.68,203.68,203.64,52.86559401]
[1756598814696,0.78,203.7,203.64,54.83414601]
[1756598815472,5.00926503,203.7,203.65,0.67]
[1756598815673,5.00926503,203.7,203.66,0.67]
[1756598817494,5.68926503,203.7,203.66,0.67]
[1756598817711,26.0,203.67,203.64,54.16414601]
[1756598817885,26.0,203.67,203.64,52.17559401]
[1756598819175,0.68,203.66,203.63,13.59559401]
[1756598820281,26.0,203.67,203.63,13.59559401]
[1756598820469,26.68,203.67,203.63,13.59559401]
[1756598820670,26.68,203.67,203.63,14.26559401]
[1756598821205,26.68,203.67,203.63,13.59559401]
[1756598821372,26.68,203.67,203.62,38.56]
[1756598821373,0.71,203.66,203.62,38.56]
[1756598821574,26.0,203.64,203.61,0.03]
[1756598822208,0.71,203.63,203.61,0.03]
[1756598822791,0.71,203.62,203.61,0.03]
[1756598822990,26.71,203.62,203.61,0.03]
[1756598823493,31.62110892,203.62,203.61,0.03]
[1756598826483,31.62110892,203.62,203.58,0.03]
[1756598826685,37.72327298,203.62,203.58,1e-08]
[1756598827487,50.0010453,203.62,203.58,1e-08]
[1756598829411,48.0308443,203.62,203.58,1e-08]
[1756598829710,26.0,203.59,203.58,1e-08]
[1756598829879,64.62,203.59,203.58,1e-08]
[1756598830083,65.33,203.59,203.58,1e-08]
[1756598830703,70.2418326,203.59,203.58,1e-08]
[1756598830881,72.2120336,203.59,203.58,1e-08]
[1756598832192,72.2120336,203.59,203.53,0.03]
[1756598832590,0.71,203.58,203.53,0.69]
[1756598832802,39.29,203.58,203.53,0.69]
[1756598833305,4.9118326,203.59,203.54,0.66]
[1756598833604,4.91135013,203.61,203.57,0.66]
[1756598833905,1.970007,203.62,203.57,0.66]
[1756598834105,6.88112435,203.62,203.58,13.59559401]
[1756598834282,26.0,203.6,203.59,0.66]
[1756598834486,4.91090278,203.63,203.59,0.66]
[1756598837689,4.91090278,203.63,203.6,0.66]
[1756598837889,4.91090278,203.63,203.61,0.66]
[1756598839412,4.91090278,203.63,203.59,0.66]
[1756598839706,4.91062659,203.64,203.6,0.66]
[1756598843496,5.62062659,203.64,203.58,0.66]
[1756598845884,26.0,203.61,203.58,0.66]
[1756598846088,26.0,203.61,203.59,0.66]
[1756598848808,4.91139274,203.61,203.56,0.69]
[1756598849001,4.91139274,203.61,203.57,0.66]
[1756598849196,4.91139274,203.61,203.58,0.66]
[1756598851920,5.62114549,203.62,203.58,0.66]
[1756598852219,5.62116369,203.62,203.58,0.66]
[1756598852424,26.06,203.63,203.58,0.66]
[1756598853522,4.91116369,203.62,203.58,0.66]
[1756598853911,4.91116369,203.62,203.59,0.72]
[1756598855001,26.0,203.61,203.59,0.72]
[1756598855202,26.06,203.63,203.59,0.72]
[1756598855418,26.06,203.63,203.6,0.72]
[1756598856118,0.06,203.63,203.6,0.72]
[1756598856330,0.06,203.63,203.61,0.72]
[1756598856703,0.06,203.63,203.59,0.72]
[1756598856906,0.11,203.63,203.58,0.72]
[1756598857107,0.11,203.63,203.59,0.72]
[1756598857108,4.91110892,203.62,203.59,0.72]
[1756598857420,0.05,203.61,203.57,0.03]
[1756598857623,0.05,203.6,203.57,0.03]
[1756598858221,17.18888124,203.62,203.57,0.03]
[1756598858522,26.05,203.59,203.57,0.03]
[1756598858722,26.0,203.59,203.57,0.75]
[1756598859515,30.91193353,203.59,203.57,0.75]
[1756598859913,30.91193353,203.59,203.57,0.03]
[1756598861130,0.05,203.62,203.57,0.75]
[1756598861327,0.06,203.63,203.58,0.72]
[1756598861629,0.06,203.63,203.59,13.59559401]
[1756598861823,0.06,203.63,203.61,13.59559401]
[1756598862014,0.06,203.63,203.62,0.72]
[1756598863011,26.06,203.63,203.62,0.72]
[1756598864833,0.06,203.63,203.62,0.72]
[1756598865026,0.06,203.63,203.61,13.59559401]
[1756598865330,0.06,203.63,203.62,0.72]
[1756598865511,26.06,203.63,203.62,0.72]
[1756598866320,0.06,203.63,203.62,0.72]
[1756598866519,0.06,203.63,203.6,0.72]
[1756598867137,0.06,203.63,203.58,0.72]
[1756598867433,0.06,203.63,203.57,0.03]
[1756598867434,0.06,203.63,203.59,0.72]
[1756598868559,0.06,203.63,203.58,0.03]
[1756598868760,0.06,203.63,203.6,0.72]
[1756598868959,4.97086775,203.63,203.6,0.72]
[1756598869333,4.97086775,203.63,203.58,0.03]
[1756598869659,4.97086775,203.63,203.59,0.72]
[1756598869955,4.97086775,203.63,203.6,0.72]
[1756598872459,0.06,203.63,203.6,0.72]
[1756598872660,0.06,203.63,203.58,0.75]
[1756598872857,0.11,203.63,203.58,0.75]
[1756598873038,0.06,203.63,203.59,0.72]
[1756598873240,0.06,203.63,203.6,0.72]
[1756598873437,0.06,203.63,203.58,0.03]
[1756598873438,0.06,203.63,203.61,0.72]
[1756598875164,0.06,203.63,203.6,0.72]
[1756598876341,0.06,203.63,203.61,0.72]
[1756598877561,0.06,203.63,203.58,0.03]
[1756598877739,0.06,203.63,203.59,0.72]
[1756598877936,0.06,203.63,203.6,0.72]
[1756598878958,0.06,203.63,203.61,0.72]
[1756598879347,0.06,203.63,203.59,0.72]
[1756598879547,0.06,203.63,203.58,0.03]
[1756598879753,0.06,203.63,203.59,0.72]
[1756598879955,0.06,203.63,203.6,0.72]
[1756598880166,0.06,203.63,203.61,0.72]
[1756598881266,0.06,203.63,203.59,0.72]
[1756598881566,0.06,203.63,203.6,0.7]
[1756598881748,0.06,203.63,203.61,0.7]
[1756598882359,0.06,203.63,203.58,4.94200793]
[1756598882558,0.06,203.63,203.62,0.7]
[1756598882964,0.06,203.63,203.58,0.03]
[1756598883166,0.06,203.63,203.6,0.7]
[1756598883568,0.05,203.62,203.58,0.03]
[1756598883873,4.11857776,203.61,203.58,0.03]
[1756598884165,0.05,203.6,203.58,0.03]
[1756598884356,0.05,203.59,203.58,0.03]
[1756598885250,26.05,203.59,203.58,0.03]
[1756598886469,26.0,203.59,203.58,0.03]
[1756598886857,26.0,203.59,203.58,0.73]
[1756598887185,26.0,203.6,203.58,0.03]
[1756598887478,4.9118326,203.59,203.58,0.03]
[1756598891577,8.83016163,203.59,203.58,0.03]
[1756598893290,8.88016163,203.59,203.57,0.03]
[1756598893475,42.37832903,203.58,203.57,0.03]
[1756598893996,42.42832903,203.58,203.57,0.03]
[1756598894293,3.91832903,203.58,203.57,0.03]
[1756598895387,34.8304029,203.58,203.57,0.03]
[1756598896674,30.91207387,203.58,203.57,0.73]
[1756598896874,34.8304029,203.58,203.57,0.03]
[1756598897384,3.91832903,203.58,203.57,0.73]
[1756598901579,0.06,203.63,203.57,19.237858]
[1756598901771,3.91832903,203.59,203.58,0.7]
[1756598902790,26.06,203.63,203.58,0.7]
[1756598902993,3.91832903,203.6,203.59,13.59559401]
[1756598903201,26.0,203.62,203.59,14.29559401]
[1756598903380,3.91832903,203.61,203.59,13.59559401]
[1756598903573,0.06,203.63,203.59,13.59559401]
[1756598903769,3.97832903,203.63,203.59,13.59559401]
[1756598904093,3.97832903,203.63,203.6,0.7]
[1756598904300,3.97832903,203.63,203.6,4.678329]
[1756598904496,3.97832903,203.63,203.62,18.50670293]
[1756598904700,3.97832903,203.63,203.62,19.20670293]
[1756598905195,0.06,203.63,203.62,19.20670293]
[1756598908288,0.06,203.63,203.62,23.12503196]
[1756598909116,0.06,203.66,203.62,37.37135628]
[1756598909312,1e-08,203.66,203.65,17.51392304]
[1756598909496,1e-08,203.66,203.65,55.99392304]
[1756598909697,1e-08,203.66,203.65,58.66179704]
[1756598910011,0.06,203.68,203.66,13.59559401]
[1756598910189,0.06,203.68,203.67,56.03392304]
[1756598910388,0.06,203.68,203.67,56.73392304]
[1756598910612,0.06,203.68,203.67,20.18170004]
[1756598910921,0.06,203.68,203.67,58.70170004]
[1756598911624,0.06,203.68,203.67,63.61160331]
[1756598912620,0.06,203.68,203.67,21.17327428]
[1756598912793,0.06,203.68,203.67,59.67327428]
[1756598915421,0.06,203.68,203.67,59.63327428]
[1756598916321,0.06,203.68,203.67,85.63327428]
[1756598916511,0.06,203.68,203.67,89.55160331]
[1756598917513,0.06,203.68,203.67,47.17327428]
[1756598917716,0.06,203.68,203.67,85.61327428]
[1756598917923,0.06,203.68,203.67,89.53160331]
[1756598918098,0.06,203.68,203.67,25.09160331]
[1756598918303,0.06,203.68,203.67,63.51160331]
[1756598919525,3.91832903,203.72,203.68,13.59559401]
[1756598919737,3.91832903,203.72,203.69,0.72]
[1756598920018,3.91832903,203.72,203.71,13.59559401]
[1756598920602,3.91832903,203.72,203.71,51.99559401]
[1756598920823,0.06,203.73,203.71,52.71559401]
[1756598921033,0.06,203.73,203.72,14.31559401]
[1756598921443,0.06,203.73,203.72,19.22283601]
[1756598922414,0.06,203.73,203.72,57.64283601]
[1756598923115,0.06,203.73,203.72,62.55153422]
[1756598923940,3.97832903,203.73,203.72,38.4]
[1756598925937,0.06,203.73,203.72,52.71559401]
[1756598927120,0.06,203.73,203.72,57.62429222]
[1756598930338,0.06,203.73,203.72,76.29950125]
[1756598930925,0.06,203.73,203.72,37.89950125]
[1756598931132,0.06,203.73,203.72,76.25950125]
[1756598933254,0.05,203.83,203.73,13.59559401]
[1756598933429,3.91832903,203.81,203.75,17.51392304]
[1756598933745,3.91832903,203.8,203.77,13.59559401]
[1756598933945,3.91832903,203.8,203.79,13.59559401]
[1756598935846,26.05,203.85,203.79,19.22259106]
[1756598936027,3.91832903,203.81,203.8,51.93559401]
[1756598936540,3.91832903,203.83,203.81,13.59559401]
[1756598936745,3.91832903,203.83,203.82,51.93559401]
[1756598939728,3.91832903,203.83,203.82,13.59559401]
[1756598939931,3.91832903,203.83,203.82,51.93559401]
[1756598940150,0.06,203.84,203.82,51.91559401]
[1756598940353,3.91832903,203.83,203.82,13.59559401]
[1756598940556,3.91832903,203.83,203.82,51.91559401]
[1756598941352,4.36832903,203.83,203.82,38.3]
[1756598941561,4.36832903,203.83,203.79,13.59559401]
[1756598941737,0.45,203.83,203.81,13.59559401]
[1756598941933,0.45,203.83,203.82,38.3]
[1756598942534,5.35605367,203.83,203.82,38.3]
[1756598943149,9.2743827,203.83,203.82,38.3]
[1756598945359,9.2743827,203.83,203.81,38.3]
[1756598945360,3.91832903,203.83,203.81,38.3]
[1756598945556,29.91832903,203.83,203.81,38.3]
[1756598945737,3.91832903,203.82,203.81,38.3]
[1756598947038,4.36832903,203.82,203.81,38.3]
[1756598947354,9.27463473,203.82,203.8,38.28]
[1756598947549,3.91832903,203.81,203.8,38.28]
[1756598947941,26.0,203.79,203.75,13.59559401]
[1756598948259,26.45,203.79,203.76,38.28]
[1756598948457,26.0,203.79,203.76,38.28]
[1756598948666,26.0,203.79,203.76,38.93]
[1756598948860,26.0,203.79,203.76,38.28]
[1756598949357,3.91832903,203.77,203.76,38.28]
[1756598949559,3.91832903,203.77,203.75,13.59559401]
[1756598949771,3.91832903,203.77,203.76,38.28]
[1756598951541,3.91832903,203.77,203.76,38.3]
[1756598952151,8.82582277,203.77,203.76,38.3]
[1756598952463,9.27582277,203.77,203.76,38.3]
[1756598952662,9.27582277,203.77,203.69,0.03]
[1756598952968,3.91832903,203.7,203.69,38.98]
[1756598954538,3.91832903,203.7,203.69,0.68]
[1756598954965,3.91832903,203.7,203.69,39.0]
[1756598955152,3.91832903,203.7,203.69,38.35]
[1756598959069,9.27750919,203.7,203.69,0.03]
[1756598959773,34.82750919,203.7,203.69,0.03]
[1756598964770,35.27750919,203.7,203.69,0.03]
[1756598965276,34.82750919,203.7,203.69,0.03]
[1756598968778,35.27750919,203.7,203.69,0.03]
[1756598968984,35.27750919,203.7,203.67,0.03]
[1756598969156,29.91832903,203.68,203.67,0.03]
[1756598969567,30.36832903,203.68,203.67,0.03]
[1756598970764,35.27799124,203.68,203.67,0.03]
[1756598971681,73.57799124,203.68,203.67,0.03]
[1756598972469,77.47593851,203.68,203.67,0.03]
[1756598972775,39.17593851,203.68,203.67,0.03]
[1756598973083,77.47593851,203.68,203.67,0.03]
[1756598974161,34.82799124,203.68,203.67,0.03]
[1756598974363,3.91832903,203.68,203.67,0.7]
[1756598975288,3.91832903,203.68,203.67,0.2]
[1756598975674,3.91832903,203.68,203.67,0.23]
[1756598975986,3.91832903,203.68,203.67,0.03]
[1756598976789,4.62832903,203.68,203.67,0.03]
[1756598978365,35.53799124,203.68,203.67,0.03]
[1756598981381,73.85799124,203.68,203.67,0.03]
[1756598981987,34.82799124,203.68,203.67,0.03]
[1756598982190,73.85799124,203.68,203.67,0.03]
[1756598982793,35.53799124,203.68,203.67,0.03]
[1756598983282,4.90966221,203.68,203.67,0.03]
[1756598983484,34.82799124,203.68,203.67,0.03]
[1756598984488,30.90966221,203.68,203.67,0.03]
[1756598984802,34.82799124,203.68,203.67,0.03]
[1756598988794,0.06,203.72,203.67,0.7]
[1756598988978,3.91832903,203.68,203.67,0.7]
[1756598994683,29.91832903,203.68,203.67,0.7]
[1756598995382,29.91832903,203.68,203.67,0.03]
[1756598995706,29.91832903,203.68,203.67,0.7]
[1756598995707,3.91832903,203.68,203.67,0.7]
[1756598998405,29.91832903,203.68,203.67,0.03]
[1756598998591,34.82799124,203.68,203.67,0.03]
[1756598999186,34.82799124,203.68,203.67,0.7]
[1756598999491,29.91832903,203.68,203.67,0.03]
[1756598999697,29.91832903,203.68,203.67,0.7]
[1756599000213,34.82799124,203.68,203.67,0.03]
[1756599001407,0.06,203.69,203.67,0.03]
[1756599001408,3.97832903,203.69,203.67,0.74]
[1756599001717,0.06,203.69,203.67,0.74]
[1756599002021,3.97832903,203.69,203.67,0.74]
[1756599002901,0.06,203.69,203.67,0.74]
[1756599003081,3.97832903,203.69,203.67,5.64983994]
[1756599003288,0.06,203.69,203.68,0.71]
[1756599003520,0.06,203.69,203.68,14.30559401]
[1756599003935,0.06,203.69,203.68,19.24543401]
[1756599004437,0.06,203.69,203.68,23.16376304]
[1756599005019,0.06,203.69,203.68,28.07342525]
[1756599006933,0.06,203.69,203.68,54.07342525]
[1756599007812,0.06,203.72,203.71,17.51392304]
[1756599008010,0.06,203.72,203.71,13.59559401]
[1756599008224,0.06,203.72,203.71,14.30559401]
[1756599008423,0.06,203.72,203.71,18.22392301]
[1756599009023,0.06,203.72,203.71,23.13286218]
[1756599011038,0.06,203.72,203.71,61.43286218]
[1756599012016,0.06,203.72,203.71,65.35119121]
[1756599012244,0.06,203.74,203.72,13.59559401]
[1756599012415,0.06,203.83,203.77,13.59559401]
[1756599012617,0.06,203.83,203.82,17.51392304]
[1756599012921,0.06,203.83,203.82,55.91392304]
[1756599013116,0.06,203.83,203.82,52.70559401]
[1756599013314,0.06,203.83,203.82,65.4485419]
[1756599013718,0.06,203.83,203.82,61.53021287]
[1756599013933,0.06,203.83,203.82,65.4485419]
[1756599015838,0.06,203.83,203.82,91.4485419]
[1756599016237,0.06,203.83,203.82,53.0485419]
[1756599016238,1e-08,203.83,203.82,53.0485419]
[1756599016444,1e-08,203.83,203.82,91.4485419]
[1756599018143,1e-08,203.83,203.82,53.0485419]
[1756599018448,1e-08,203.83,203.82,91.4285419]
[1756599019843,1e-08,203.83,203.82,18.22392301]
[1756599020154,1e-08,203.83,203.82,60.50225204]
[1756599020340,1e-08,203.83,203.82,17.51392301]
[1756599020536,1e-08,203.83,203.82,65.4685419]
[1756599021153,1e-08,203.83,203.82,55.93392301]
[1756599021541,1e-08,203.83,203.82,17.51392301]
[1756599021855,1e-08,203.83,203.82,55.97392301]
[1756599022054,1e-08,203.83,203.82,17.51392301]
[1756599022369,4.61832904,203.83,203.82,52.03559401]
[1756599022555,4.61832904,203.83,203.82,13.59559401]
[1756599022734,4.61832904,203.83,203.82,52.05559401]
[1756599023439,4.61832904,203.83,203.8,4.905144]
[1756599023656,3.91832903,203.81,203.75,13.59559401]
[1756599023861,3.91832903,203.79,203.76,38.04]
[1756599024150,4.61832903,203.79,203.76,38.04]
[1756599024656,0.7,203.81,203.76,38.04]
[1756599024860,3.91832903,203.79,203.76,38.04]
[1756599025447,3.91832903,203.78,203.76,38.04]
[1756599026133,3.91832903,203.78,203.76,42.94773251]
[1756599026336,3.91832903,203.78,203.77,38.56]
[1756599026553,4.61832903,203.78,203.75,13.59559401]
[1756599026861,4.90705443,203.79,203.75,13.59559401]
[1756599027046,4.90705443,203.79,203.76,38.54]
[1756599027246,0.7,203.78,203.76,38.54]
[1756599027549,0.7,203.77,203.76,13.59559401]
[1756599027862,4.61832903,203.77,203.76,52.18559401]
[1756599028564,3.91832903,203.77,203.76,52.18559401]
[1756599028765,4.61832903,203.77,203.76,52.18559401]
[1756599028939,1e-08,203.83,203.81,13.59559401]
[1756599029257,1e-08,203.83,203.82,56.76392304]
[1756599030056,1e-08,203.83,203.82,61.6702129]
[1756599030647,1e-08,203.83,203.82,63.6364429]
[1756599031648,1e-08,203.83,203.82,21.17811387]
[1756599031858,1e-08,203.83,203.82,59.91811387]
[1756599032045,1e-08,203.83,203.82,63.8364429]
[1756599033846,1e-08,203.83,203.82,25.0964429]
[1756599034049,1e-08,203.83,203.82,63.8564429]
[1756599036866,1e-08,203.83,203.82,59.93811387]
[1756599037051,1e-08,203.83,203.82,63.8564429]
[1756599037859,1e-08,203.83,203.82,63.8364429]
[1756599039071,1e-08,203.83,203.82,59.91811387]
[1756599039252,1e-08,203.83,203.82,63.8364429]
[1756599040968,1e-08,203.83,203.82,25.0964429]
[1756599041151,1e-08,203.83,203.82,63.8164429]
[1756599043267,1e-08,203.83,203.82,25.0964429]
[1756599043455,1e-08,203.83,203.82,20.46811387]
[1756599043781,0.22,203.88,203.85,39.59559401]
[1756599044080,0.22,203.88,203.85,52.29559401]
[1756599044263,3.91832903,203.87,203.85,52.29559401]
[1756599044446,4.13832903,203.88,203.85,52.29559401]
[1756599044845,0.91,203.88,203.85,56.43392301]
[1756599045081,4.82832903,203.88,203.85,56.43392301]
[1756599045375,0.91,203.88,203.85,61.33949082]
[1756599045571,4.82832903,203.88,203.85,22.63949082]
[1756599045755,4.82832903,203.88,203.85,61.35949082]
[1756599046074,0.91,203.88,203.85,61.35949082]
[1756599046278,4.82832903,203.88,203.85,61.35949082]
[1756599046884,4.66832903,203.86,203.85,13.59559401]
[1756599047053,4.66832903,203.86,203.85,52.29559401]
[1756599047357,0.161,203.93,203.88,13.59559401]
[1756599047554,0.161,203.93,203.92,17.51392304]
[1756599047753,0.161,203.93,203.92,13.59559401]
[1756599047958,0.161,203.93,203.92,52.53559401]
[1756599048288,0.161,203.93,203.92,61.03225204]
[1756599048775,0.161,203.93,203.92,65.93613591]
[1756599049165,0.161,203.93,203.92,26.99613591]
[1756599049472,0.161,203.93,203.92,65.95613591]
[1756599049865,0.161,203.93,203.92,26.99613591]
[1756599050371,0.161,203.93,203.92,65.95613591]
[1756599051047,0.161,203.93,203.92,62.03780688]
[1756599051252,0.161,203.93,203.92,65.27613591]
[1756599051446,0.161,203.93,203.92,22.41780688]
[1756599051667,0.161,203.93,203.92,65.27613591]
[1756599053275,0.161,203.93,203.92,22.41780688]
[1756599053571,0.161,203.93,203.92,61.35780688]
[1756599054574,0.161,203.93,203.92,65.27613591]
[1756599055150,0.161,203.93,203.92,61.35780688]
[1756599055351,0.161,203.93,203.92,65.27613591]
[1756599056055,0.161,203.93,203.92,61.35780688]
[1756599057155,0.161,203.93,203.92,22.41780688]
[1756599057356,0.161,203.93,203.92,61.29780688]
[1756599057557,4.76932903,203.93,203.92,17.51392301]
[1756599057772,4.76932903,203.93,203.92,56.37392301]
[1756599058276,4.76932903,203.93,203.92,52.45559401]
[1756599058771,4.76932903,203.93,203.83,0.66]
[1756599058952,3.91832903,203.89,203.84,57.36140248]
[1756599059153,3.91832903,203.88,203.86,13.59559401]
[1756599059373,0.69,203.89,203.87,38.9]
[1756599059560,4.60832903,203.89,203.88,13.59559401]
[1756599060363,30.60832903,203.89,203.82,0.03]
[1756599060691,3.91832903,203.83,203.82,13.62559401]
[1756599060856,4.60832903,203.83,203.82,0.03]
[1756599061054,26.0,203.86,203.82,38.93]
[1756599061271,3.91832903,203.84,203.83,13.59559401]
[1756599061879,4.62832903,203.84,203.83,13.59559401]
[1756599062563,0.71,203.9,203.83,23.12997219]
[1756599062880,3.91832903,203.89,203.85,13.59559401]
[1756599063176,3.91832903,203.89,203.87,13.59559401]
[1756599063177,4.62832903,203.89,203.87,13.59559401]
[1756599063379,0.71,203.89,203.88,38.98]
[1756599063565,4.62832903,203.89,203.88,38.98]
[1756599063969,4.62832903,203.89,203.88,52.57559401]
[1756599065484,4.62832903,203.89,203.88,52.60559401]
[1756599068891,4.62832903,203.89,203.88,0.03]
[1756599069774,0.161,203.93,203.88,18.25392304]
[1756599069988,0.161,203.93,203.92,13.59559401]
[1756599070292,0.161,203.93,203.92,61.43780691]
[1756599070512,0.161,203.93,203.92,62.14780691]
[1756599071285,0.161,203.93,203.92,66.06613591]
[1756599071485,1e-08,203.93,203.92,66.06613591]
[1756599071670,1e-08,203.93,203.92,69.68838534]
[1756599072383,1e-08,203.93,203.92,69.70838534]
[1756599073372,1e-08,203.93,203.92,69.71196383]
[1756599074783,1e-08,203.93,203.92,26.7536348]
[1756599074975,1e-08,203.93,203.92,30.67189451]
[1756599075187,1e-08,203.93,203.92,23.12780688]
[1756599075386,1e-08,203.93,203.92,22.41780688]
[1756599075784,1e-08,203.93,203.92,61.41780688]
[1756599077192,1e-08,203.93,203.92,17.51392301]
[1756599077494,1e-08,203.93,203.92,56.49392301]
[1756599078574,4.62832904,203.93,203.92,56.49392301]